[Event "Titled Tuesday Blitz February 07 Early 2023"]
[White "Ramirez Allo, Eduardo"]
[Black "Ozen, Bahadir"]
[WhiteFideId "2224178"]
[BlackFideId "6337058"]
[WhiteElo "2274"]
[BlackElo "2369"]
[Result "0-1"]
[Round "01"]
[TimeControl "180+2"]
[Date "2023.02.07"]
[WhiteClock "0:00:10"]
[BlackClock "0:00:06"]

1. d4 {[%clk 0:03:00]}  d6 {[%clk 0:02:59]} 2. c4 {[%clk 0:02:59]}  Nf6 {[%clk 0:02:59]} 3. Nf3 {[%clk 0:02:58]}  Nbd7 {[%clk 0:02:58]} 4. g3 {[%clk 0:02:59]}  c6 {[%clk 0:02:55]} 5. Bg2 {[%clk 0:02:59]}  e5 {[%clk 0:02:56]} 6. O-O {[%clk 0:02:58]}  Be7 {[%clk 0:02:56]} 7. Nc3 {[%clk 0:02:59]}  O-O {[%clk 0:02:56]} 8. b3 {[%clk 0:02:59]}  exd4 {[%clk 0:02:54]} 9. Nxd4 {[%clk 0:02:59]}  Nc5 {[%clk 0:02:52]} 10. Bb2 {[%clk 0:02:59]}  a5 {[%clk 0:02:51]} 11. Rc1 {[%clk 0:02:49]}  Re8 {[%clk 0:02:51]} 12. Qc2 {[%clk 0:02:49]}  Bf8 {[%clk 0:02:51]} 13. Rfd1 {[%clk 0:02:49]}  g6 {[%clk 0:02:40]} 14. e3 {[%clk 0:02:43]}  Bg4 {[%clk 0:02:37]} 15. Rd2 {[%clk 0:02:40]}  h5 {[%clk 0:02:32]} 16. h3 {[%clk 0:02:40]}  Bd7 {[%clk 0:02:32]} 17. Rcd1 {[%clk 0:02:38]}  Qb6 {[%clk 0:02:28]} 18. Qb1 {[%clk 0:02:21]}  Rad8 {[%clk 0:02:26]} 19. Nde2 {[%clk 0:02:18]}  Bf5 {[%clk 0:02:18]} 20. Qa1 {[%clk 0:02:18]}  Nfe4 {[%clk 0:02:14]} 21. Rd4 {[%clk 0:02:06]}  Ng5 {[%clk 0:02:03]} 22. Nf4 {[%clk 0:01:59]}  Qc7 {[%clk 0:01:59]} 23. h4 {[%clk 0:01:54]}  Nh7 {[%clk 0:01:57]} 24. Qc1 {[%clk 0:01:48]}  Nf6 {[%clk 0:01:54]} 25. Na4 {[%clk 0:01:33]}  Nxa4 {[%clk 0:01:44]} 26. bxa4 {[%clk 0:01:34]}  Nd7 {[%clk 0:01:44]} 27. R4d2 {[%clk 0:01:24]}  Ne5 {[%clk 0:01:33]} 28. Qc3 {[%clk 0:01:12]}  Bg7 {[%clk 0:01:31]} 29. Qb3 {[%clk 0:01:13]}  Bg4 {[%clk 0:01:26]} 30. Rb1 {[%clk 0:01:09]}  Rd7 {[%clk 0:01:05]} 31. Bd4 {[%clk 0:01:04]}  Qd8 {[%clk 0:00:54]} 32. Bb6 {[%clk 0:00:49]}  Qa8 {[%clk 0:00:50]} 33. Nd3 {[%clk 0:00:42]}  Nf3+ {[%clk 0:00:41]} 34. Bxf3 {[%clk 0:00:43]}  Bxf3 {[%clk 0:00:42]} 35. Nf4 {[%clk 0:00:41]}  Be5 {[%clk 0:00:34]} 36. Bd4 {[%clk 0:00:37]}  Qd8 {[%clk 0:00:35]} 37. Kh2 {[%clk 0:00:18]}  Qe7 {[%clk 0:00:31]} 38. Nh3 {[%clk 0:00:17]}  Be4 {[%clk 0:00:17]} 39. Rbd1 {[%clk 0:00:15]}  Bf3 {[%clk 0:00:17]} 40. Rb1 {[%clk 0:00:15]}  Kg7 {[%clk 0:00:12]} 41. Bxe5+ {[%clk 0:00:15]}  dxe5 {[%clk 0:00:12]} 42. Rxd7 {[%clk 0:00:16]}  Qxd7 {[%clk 0:00:13]} 43. Qxb7 {[%clk 0:00:16]}  Qxb7 {[%clk 0:00:06]} 44. Rxb7 {[%clk 0:00:16]}  Rd8 {[%clk 0:00:07]} 45. Ng5 {[%clk 0:00:15]}  Be2 {[%clk 0:00:04]} 46. Nxf7 {[%clk 0:00:14]}  Rd1 {[%clk 0:00:04]} 47. Nxe5+ {[%clk 0:00:14]}  Kf6 {[%clk 0:00:05]} 48. Nxc6 {[%clk 0:00:14]}  Bf3 {[%clk 0:00:05]} 49. g4 {[%clk 0:00:14]}  Bxc6 {[%clk 0:00:05]} 50. Rb6 {[%clk 0:00:14]}  Rd6 {[%clk 0:00:05]} 51. c5 {[%clk 0:00:15]}  Re6 {[%clk 0:00:06]} 52. gxh5 {[%clk 0:00:15]}  gxh5 {[%clk 0:00:07]} 53. Kg3 {[%clk 0:00:15]}  Ke5 {[%clk 0:00:07]} 54. f4+ {[%clk 0:00:15]}  Ke4 {[%clk 0:00:07]} 55. Ra6 {[%clk 0:00:09]}  Kxe3 {[%clk 0:00:06]} 56. f5 {[%clk 0:00:10]}  Rf6 {[%clk 0:00:07]} 57. Rxa5 {[%clk 0:00:10]}  Rxf5 {[%clk 0:00:07]} 58. Ra8 {[%clk 0:00:10]}  Bxa8 {[%clk 0:00:06]} 0-1


[Site "https://www.chess.com"]

[Event "Titled Tuesday Blitz February 07 Early 2023"]
[White "Kuzmin, Roman"]
[Black "Harsh Suresh"]
[WhiteFideId "44134932"]
[BlackFideId "45018464"]
[WhiteElo "2198"]
[BlackElo "2298"]
[Result "0-1"]
[Round "01"]
[TimeControl "180+2"]
[Date "2023.02.07"]
[WhiteClock "0:00:32"]
[BlackClock "0:00:11"]

1. e4 {[%clk 0:03:00]}  c5 {[%clk 0:02:58]} 2. Nf3 {[%clk 0:03:01]}  d6 {[%clk 0:02:57]} 3. d4 {[%clk 0:03:01]}  cxd4 {[%clk 0:02:58]} 4. Nxd4 {[%clk 0:03:02]}  Nf6 {[%clk 0:02:58]} 5. Nc3 {[%clk 0:03:03]}  g6 {[%clk 0:02:59]} 6. Be3 {[%clk 0:03:02]}  Bg7 {[%clk 0:02:59]} 7. Be2 {[%clk 0:03:02]}  O-O {[%clk 0:02:59]} 8. Qd2 {[%clk 0:03:03]}  Nc6 {[%clk 0:02:59]} 9. O-O-O {[%clk 0:03:03]}  Nxd4 {[%clk 0:02:41]} 10. Bxd4 {[%clk 0:03:03]}  Be6 {[%clk 0:02:42]} 11. Kb1 {[%clk 0:02:49]}  Rc8 {[%clk 0:02:27]} 12. f3 {[%clk 0:02:48]}  Qa5 {[%clk 0:02:20]} 13. Nd5 {[%clk 0:02:41]}  Qd8 {[%clk 0:02:09]} 14. Nxf6+ {[%clk 0:02:40]}  exf6 {[%clk 0:02:07]} 15. Bc3 {[%clk 0:02:35]}  Rc6 {[%clk 0:01:57]} 16. f4 {[%clk 0:02:19]}  f5 {[%clk 0:01:48]} 17. Bxg7 {[%clk 0:02:15]}  Kxg7 {[%clk 0:01:49]} 18. Qd4+ {[%clk 0:02:10]}  Qf6 {[%clk 0:01:49]} 19. Bf3 {[%clk 0:02:05]}  Qxd4 {[%clk 0:01:41]} 20. Rxd4 {[%clk 0:02:06]}  Ra6 {[%clk 0:01:35]} 21. b3 {[%clk 0:02:02]}  fxe4 {[%clk 0:01:02]} 22. Bxe4 {[%clk 0:02:03]}  Rb6 {[%clk 0:01:03]} 23. Rhd1 {[%clk 0:02:03]}  Rd8 {[%clk 0:01:02]} 24. Kb2 {[%clk 0:01:56]}  Kf6 {[%clk 0:01:01]} 25. h3 {[%clk 0:01:52]}  h5 {[%clk 0:01:01]} 26. a4 {[%clk 0:01:49]}  Ke7 {[%clk 0:00:50]} 27. Ka3 {[%clk 0:01:42]}  a5 {[%clk 0:00:41]} 28. Bf3 {[%clk 0:01:36]}  h4 {[%clk 0:00:36]} 29. Re1 {[%clk 0:01:28]}  Rc8 {[%clk 0:00:32]} 30. c4 {[%clk 0:01:28]}  Rc5 {[%clk 0:00:32]} 31. Be4 {[%clk 0:01:25]}  Kf6 {[%clk 0:00:31]} 32. Red1 {[%clk 0:01:21]}  Ke7 {[%clk 0:00:31]} 33. Bc2 {[%clk 0:01:21]}  d5 {[%clk 0:00:22]} 34. Bd3 {[%clk 0:00:56]}  dxc4 {[%clk 0:00:22]} 35. Bxc4 {[%clk 0:00:57]}  Bxc4 {[%clk 0:00:21]} 36. bxc4 {[%clk 0:00:57]}  Re6 {[%clk 0:00:18]} 37. Rd7+ {[%clk 0:00:52]}  Kf8 {[%clk 0:00:18]} 38. Rxb7 {[%clk 0:00:51]}  Re3+ {[%clk 0:00:17]} 39. Rb3 {[%clk 0:00:48]}  Re2 {[%clk 0:00:16]} 40. Rc3 {[%clk 0:00:41]}  Rxg2 {[%clk 0:00:16]} 41. Rd5 {[%clk 0:00:42]}  Rxd5 {[%clk 0:00:12]} 42. cxd5 {[%clk 0:00:42]}  Ke7 {[%clk 0:00:11]} 43. Kb3 {[%clk 0:00:37]}  Kd6 {[%clk 0:00:10]} 44. Kc4 {[%clk 0:00:37]}  Rg3 {[%clk 0:00:10]} 45. Rc1 {[%clk 0:00:35]}  Rxh3 {[%clk 0:00:10]} 46. Kb5 {[%clk 0:00:36]}  Kxd5 {[%clk 0:00:08]} 47. Rd1+ {[%clk 0:00:37]}  Ke4 {[%clk 0:00:08]} 48. Kxa5 {[%clk 0:00:37]}  Kxf4 {[%clk 0:00:07]} 49. Kb6 {[%clk 0:00:38]}  Rb3+ {[%clk 0:00:07]} 50. Ka7 {[%clk 0:00:38]}  Ra3 {[%clk 0:00:07]} 51. Rd4+ {[%clk 0:00:36]}  Kg3 {[%clk 0:00:07]} 52. Kb6 {[%clk 0:00:36]}  h3 {[%clk 0:00:08]} 53. a5 {[%clk 0:00:36]}  h2 {[%clk 0:00:08]} 54. Rd1 {[%clk 0:00:37]}  Kh3 {[%clk 0:00:08]} 55. a6 {[%clk 0:00:36]}  g5 {[%clk 0:00:08]} 56. a7 {[%clk 0:00:32]}  Rxa7 {[%clk 0:00:08]} 57. Kxa7 {[%clk 0:00:31]}  g4 {[%clk 0:00:09]} 58. Kb6 {[%clk 0:00:31]}  g3 {[%clk 0:00:09]} 59. Kc6 {[%clk 0:00:30]}  g2 {[%clk 0:00:10]} 60. Rd3+ {[%clk 0:00:31]}  Kg4 {[%clk 0:00:10]} 61. Rd4+ {[%clk 0:00:31]}  Kf5 {[%clk 0:00:11]} 62. Rd5+ {[%clk 0:00:31]}  Kf6 {[%clk 0:00:11]} 63. Rd6+ {[%clk 0:00:32]}  Kg7 {[%clk 0:00:11]} 0-1


[Site "https://www.chess.com"]

[Event "Titled Tuesday Blitz February 07 Early 2023"]
[White "Yuan, Qingyu"]
[Black "Tymrakiewicz, Rafal"]
[WhiteFideId "8609772"]
[BlackFideId "1108832"]
[WhiteElo "2373"]
[BlackElo "2144"]
[Result "1-0"]
[Round "01"]
[TimeControl "180+2"]
[Date "2023.02.07"]
[WhiteClock "0:00:05"]
[BlackClock "0:00:01"]

1. e4 {[%clk 0:02:49]}  Nf6 {[%clk 0:02:59]} 2. e5 {[%clk 0:02:49]}  Nd5 {[%clk 0:02:59]} 3. d4 {[%clk 0:02:49]}  d6 {[%clk 0:03:00]} 4. c4 {[%clk 0:02:49]}  Nb6 {[%clk 0:02:59]} 5. exd6 {[%clk 0:02:50]}  cxd6 {[%clk 0:03:00]} 6. Nf3 {[%clk 0:02:50]}  g6 {[%clk 0:02:59]} 7. h3 {[%clk 0:02:50]}  Bg7 {[%clk 0:03:00]} 8. Be2 {[%clk 0:02:50]}  O-O {[%clk 0:03:00]} 9. Nc3 {[%clk 0:02:51]}  Nc6 {[%clk 0:02:53]} 10. O-O {[%clk 0:02:48]}  e5 {[%clk 0:02:35]} 11. Bg5 {[%clk 0:02:33]}  f6 {[%clk 0:02:35]} 12. Be3 {[%clk 0:02:31]}  Kh8 {[%clk 0:02:20]} 13. dxe5 {[%clk 0:02:19]}  dxe5 {[%clk 0:02:10]} 14. Qb3 {[%clk 0:02:18]}  Be6 {[%clk 0:02:07]} 15. Rfd1 {[%clk 0:02:05]}  Qc7 {[%clk 0:01:49]} 16. Nd5 {[%clk 0:01:44]}  Bxd5 {[%clk 0:01:40]} 17. cxd5 {[%clk 0:01:45]}  Nb8 {[%clk 0:01:25]} 18. Rac1 {[%clk 0:01:34]}  Qd8 {[%clk 0:01:25]} 19. a4 {[%clk 0:01:25]}  Rf7 {[%clk 0:01:16]} 20. d6 {[%clk 0:01:16]}  Rd7 {[%clk 0:01:06]} 21. a5 {[%clk 0:00:35]}  Nc8 {[%clk 0:01:03]} 22. Qe6 {[%clk 0:00:22]}  Nc6 {[%clk 0:00:56]} 23. a6 {[%clk 0:00:21]}  Nd4 {[%clk 0:00:19]} 24. Nxd4 {[%clk 0:00:14]}  exd4 {[%clk 0:00:20]} 25. Rxd4 {[%clk 0:00:14]}  bxa6 {[%clk 0:00:18]} 26. Bxa6 {[%clk 0:00:11]}  Nxd6 {[%clk 0:00:06]} 27. Rcd1 {[%clk 0:00:08]}  Bf8 {[%clk 0:00:05]} 28. Bf4 {[%clk 0:00:07]}  Qb6 {[%clk 0:00:01]} 29. Be2 {[%clk 0:00:05]} 1-0


[Site "https://www.chess.com"]

[Event "Titled Tuesday Blitz February 07 Early 2023"]
[White "Guseinov, Gadir"]
[Black "sabkeIXO"]
[WhiteFideId "13401378"]
[WhiteElo "2661"]
[BlackElo "2467"]
[Result "1-0"]
[Round "01"]
[TimeControl "180+2"]
[Date "2023.02.07"]
[WhiteClock "0:01:55"]
[BlackClock "0:01:03"]

1. e4 {[%clk 0:03:00]}  d5 {[%clk 0:02:58]} 2. exd5 {[%clk 0:03:00]}  Nf6 {[%clk 0:02:58]} 3. Nf3 {[%clk 0:02:58]}  Nxd5 {[%clk 0:02:56]} 4. c4 {[%clk 0:02:58]}  Nb6 {[%clk 0:02:56]} 5. Nc3 {[%clk 0:02:57]}  Bg4 {[%clk 0:02:55]} 6. c5 {[%clk 0:02:54]}  N6d7 {[%clk 0:02:45]} 7. d4 {[%clk 0:02:45]}  c6 {[%clk 0:02:34]} 8. h3 {[%clk 0:02:37]}  Bxf3 {[%clk 0:02:34]} 9. Qxf3 {[%clk 0:02:38]}  e6 {[%clk 0:02:33]} 10. Bf4 {[%clk 0:02:30]}  Be7 {[%clk 0:02:29]} 11. Qg4 {[%clk 0:02:14]}  Bf6 {[%clk 0:02:22]} 12. Bd6 {[%clk 0:02:12]}  Na6 {[%clk 0:01:54]} 13. Bxa6 {[%clk 0:02:10]}  bxa6 {[%clk 0:01:55]} 14. O-O-O {[%clk 0:02:09]}  Nf8 {[%clk 0:01:38]} 15. Rhe1 {[%clk 0:02:08]}  Ng6 {[%clk 0:01:34]} 16. f4 {[%clk 0:02:03]}  Ne7 {[%clk 0:01:29]} 17. f5 {[%clk 0:02:00]}  exf5 {[%clk 0:01:10]} 18. Bxe7 {[%clk 0:02:00]}  Bxe7 {[%clk 0:01:07]} 19. Qxg7 {[%clk 0:02:00]}  Kd7 {[%clk 0:01:07]} 20. Qxf7 {[%clk 0:01:59]}  Re8 {[%clk 0:01:03]} 21. d5 {[%clk 0:01:55]} 1-0


[Site "https://www.chess.com"]

[Event "Titled Tuesday Blitz February 07 Early 2023"]
[White "Wahedi, Ahmad Siar"]
[Black "Ohanyan, Emin"]
[WhiteFideId "4651260"]
[BlackFideId "13312022"]
[WhiteElo "2274"]
[BlackElo "2444"]
[Result "0-1"]
[Round "01"]
[TimeControl "180+2"]
[Date "2023.02.07"]
[WhiteClock "0:00:18"]
[BlackClock "0:00:32"]

1. e4 {[%clk 0:03:00]}  e5 {[%clk 0:02:56]} 2. Nf3 {[%clk 0:03:01]}  Nc6 {[%clk 0:02:57]} 3. Bb5 {[%clk 0:03:00]}  f5 {[%clk 0:02:56]} 4. Qe2 {[%clk 0:02:35]}  fxe4 {[%clk 0:02:41]} 5. Bxc6 {[%clk 0:02:12]}  dxc6 {[%clk 0:02:40]} 6. Qxe4 {[%clk 0:02:12]}  Bd6 {[%clk 0:02:39]} 7. O-O {[%clk 0:01:58]}  Nf6 {[%clk 0:02:39]} 8. Qc4 {[%clk 0:01:58]}  Qd7 {[%clk 0:02:36]} 9. Re1 {[%clk 0:01:57]}  Qf5 {[%clk 0:02:27]} 10. d4 {[%clk 0:01:29]}  e4 {[%clk 0:02:22]} 11. Nc3 {[%clk 0:01:18]}  Be6 {[%clk 0:02:18]} 12. Qe2 {[%clk 0:01:18]}  exf3 {[%clk 0:01:20]} 13. Qxe6+ {[%clk 0:01:17]}  Qxe6 {[%clk 0:01:21]} 14. Rxe6+ {[%clk 0:01:17]}  Kd7 {[%clk 0:01:19]} 15. Re1 {[%clk 0:01:16]}  Rae8 {[%clk 0:01:02]} 16. Be3 {[%clk 0:01:15]}  fxg2 {[%clk 0:00:52]} 17. Kxg2 {[%clk 0:01:14]}  Nd5 {[%clk 0:00:50]} 18. Bd2 {[%clk 0:01:04]}  Nxc3 {[%clk 0:00:45]} 19. Bxc3 {[%clk 0:01:03]}  Re6 {[%clk 0:00:42]} 20. Rxe6 {[%clk 0:01:00]}  Kxe6 {[%clk 0:00:42]} 21. Bd2 {[%clk 0:01:00]}  Kd5 {[%clk 0:00:41]} 22. c3 {[%clk 0:01:00]}  b5 {[%clk 0:00:41]} 23. Re1 {[%clk 0:00:59]}  Rf8 {[%clk 0:00:38]} 24. h3 {[%clk 0:00:59]}  a5 {[%clk 0:00:37]} 25. f3 {[%clk 0:00:58]}  a4 {[%clk 0:00:36]} 26. Re4 {[%clk 0:00:56]}  Kc4 {[%clk 0:00:36]} 27. Kf2 {[%clk 0:00:52]}  Kd3 {[%clk 0:00:34]} 28. Bg5 {[%clk 0:00:51]}  Rf5 {[%clk 0:00:31]} 29. Re3+ {[%clk 0:00:49]}  Kc2 {[%clk 0:00:31]} 30. Re2+ {[%clk 0:00:49]}  Kb1 {[%clk 0:00:31]} 31. h4 {[%clk 0:00:42]}  Kxa2 {[%clk 0:00:31]} 32. Ke3 {[%clk 0:00:41]}  Kb3 {[%clk 0:00:31]} 33. Kd3 {[%clk 0:00:41]}  c5 {[%clk 0:00:30]} 34. dxc5 {[%clk 0:00:41]}  Rd5+ {[%clk 0:00:30]} 35. Ke4 {[%clk 0:00:41]}  Re5+ {[%clk 0:00:30]} 36. Kd3 {[%clk 0:00:40]}  Rxe2 {[%clk 0:00:31]} 37. cxd6 {[%clk 0:00:38]}  Re6 {[%clk 0:00:32]} 38. dxc7 {[%clk 0:00:37]}  Rc6 {[%clk 0:00:32]} 39. Bd8 {[%clk 0:00:25]}  Kxb2 {[%clk 0:00:32]} 40. h5 {[%clk 0:00:23]}  a3 {[%clk 0:00:32]} 41. h6 {[%clk 0:00:23]}  g6 {[%clk 0:00:32]} 42. Kd4 {[%clk 0:00:22]}  a2 {[%clk 0:00:32]} 43. Kd5 {[%clk 0:00:22]}  Rc4 {[%clk 0:00:32]} 44. f4 {[%clk 0:00:19]}  a1=Q {[%clk 0:00:32]} 45. f5 {[%clk 0:00:19]}  Qa6 {[%clk 0:00:32]} 46. f6 {[%clk 0:00:18]}  Qc6+ {[%clk 0:00:31]} 47. Ke5 {[%clk 0:00:18]}  Re4# {[%clk 0:00:32]} 0-1


[Site "https://www.chess.com"]

[Event "Titled Tuesday Blitz February 07 Early 2023"]
[White "Perez Ponsa, Federico"]
[Black "Nur-Mukhametova, Alisa"]
[WhiteFideId "117927"]
[BlackFideId "54117739"]
[WhiteElo "2532"]
[BlackElo "2170"]
[Result "1-0"]
[Round "01"]
[TimeControl "180+2"]
[Date "2023.02.07"]
[WhiteClock "0:00:11"]
[BlackClock "0:00:10"]

1. e4 {[%clk 0:02:54]}  c5 {[%clk 0:02:59]} 2. Nf3 {[%clk 0:02:54]}  d6 {[%clk 0:02:59]} 3. d4 {[%clk 0:02:53]}  cxd4 {[%clk 0:02:59]} 4. Nxd4 {[%clk 0:02:54]}  Nf6 {[%clk 0:02:59]} 5. Nc3 {[%clk 0:02:55]}  a6 {[%clk 0:02:59]} 6. Be2 {[%clk 0:02:55]}  e6 {[%clk 0:02:58]} 7. g4 {[%clk 0:02:53]}  b5 {[%clk 0:02:56]} 8. g5 {[%clk 0:02:44]}  Nfd7 {[%clk 0:02:55]} 9. a3 {[%clk 0:02:41]}  Bb7 {[%clk 0:02:54]} 10. f4 {[%clk 0:02:28]}  h6 {[%clk 0:02:33]} 11. Bh5 {[%clk 0:02:15]}  Nc5 {[%clk 0:02:19]} 12. h4 {[%clk 0:02:00]}  Nxe4 {[%clk 0:01:58]} 13. Nxe4 {[%clk 0:01:39]}  Bxe4 {[%clk 0:01:57]} 14. O-O {[%clk 0:01:40]}  g6 {[%clk 0:01:36]} 15. Bf3 {[%clk 0:01:33]}  Bxf3 {[%clk 0:01:27]} 16. Qxf3 {[%clk 0:01:33]}  d5 {[%clk 0:01:08]} 17. b4 {[%clk 0:01:24]}  Bg7 {[%clk 0:01:05]} 18. Bb2 {[%clk 0:01:22]}  Qb6 {[%clk 0:00:55]} 19. Qf2 {[%clk 0:01:15]}  Nc6 {[%clk 0:00:48]} 20. Rad1 {[%clk 0:00:47]}  Nxd4 {[%clk 0:00:45]} 21. Rxd4 {[%clk 0:00:48]}  h5 {[%clk 0:00:37]} 22. Re1 {[%clk 0:00:36]}  O-O {[%clk 0:00:34]} 23. Ba1 {[%clk 0:00:32]}  Rac8 {[%clk 0:00:34]} 24. Kg2 {[%clk 0:00:31]}  Rc4 {[%clk 0:00:18]} 25. Rxc4 {[%clk 0:00:29]}  Qxf2+ {[%clk 0:00:18]} 26. Kxf2 {[%clk 0:00:30]}  bxc4 {[%clk 0:00:17]} 27. Bxg7 {[%clk 0:00:20]}  Kxg7 {[%clk 0:00:18]} 28. Ke3 {[%clk 0:00:21]}  Rc8 {[%clk 0:00:16]} 29. c3 {[%clk 0:00:20]}  Kf8 {[%clk 0:00:16]} 30. Kd4 {[%clk 0:00:20]}  Ke7 {[%clk 0:00:17]} 31. Ke5 {[%clk 0:00:20]}  Re8 {[%clk 0:00:17]} 32. a4 {[%clk 0:00:19]}  Rd8 {[%clk 0:00:16]} 33. Rb1 {[%clk 0:00:18]}  Rb8 {[%clk 0:00:15]} 34. b5 {[%clk 0:00:17]}  axb5 {[%clk 0:00:15]} 35. axb5 {[%clk 0:00:17]}  Rb6 {[%clk 0:00:14]} 36. Rb2 {[%clk 0:00:16]}  Rb7 {[%clk 0:00:14]} 37. b6 {[%clk 0:00:16]}  Kd7 {[%clk 0:00:14]} 38. Kf6 {[%clk 0:00:11]}  Kc6 {[%clk 0:00:14]} 39. Rb1 {[%clk 0:00:06]}  Rxb6 {[%clk 0:00:14]} 40. Rxb6+ {[%clk 0:00:05]}  Kxb6 {[%clk 0:00:15]} 41. Kxf7 {[%clk 0:00:05]}  d4 {[%clk 0:00:15]} 42. cxd4 {[%clk 0:00:06]}  c3 {[%clk 0:00:15]} 43. d5 {[%clk 0:00:06]}  exd5 {[%clk 0:00:15]} 44. f5 {[%clk 0:00:07]}  c2 {[%clk 0:00:14]} 45. fxg6 {[%clk 0:00:07]}  c1=Q {[%clk 0:00:14]} 46. g7 {[%clk 0:00:08]}  Qc7+ {[%clk 0:00:15]} 47. Kg6 {[%clk 0:00:08]}  Qd6+ {[%clk 0:00:15]} 48. Kh7 {[%clk 0:00:09]}  Qe7 {[%clk 0:00:15]} 49. Kh8 {[%clk 0:00:09]}  Qe5 {[%clk 0:00:14]} 50. Kh7 {[%clk 0:00:10]}  Qxg7+ {[%clk 0:00:11]} 51. Kxg7 {[%clk 0:00:09]}  d4 {[%clk 0:00:12]} 52. Kh6 {[%clk 0:00:05]}  d3 {[%clk 0:00:13]} 53. g6 {[%clk 0:00:05]}  d2 {[%clk 0:00:14]} 54. g7 {[%clk 0:00:06]}  d1=Q {[%clk 0:00:14]} 55. g8=Q {[%clk 0:00:07]}  Qd2+ {[%clk 0:00:11]} 56. Qg5 {[%clk 0:00:07]}  Qd6+ {[%clk 0:00:11]} 57. Kxh5 {[%clk 0:00:03]}  Qd1+ {[%clk 0:00:10]} 58. Kh6 {[%clk 0:00:03]}  Kc6 {[%clk 0:00:09]} 59. h5 {[%clk 0:00:03]}  Kd7 {[%clk 0:00:09]} 60. Qf6 {[%clk 0:00:03]}  Qd2+ {[%clk 0:00:09]} 61. Kg7 {[%clk 0:00:03]}  Qg2+ {[%clk 0:00:08]} 62. Qg6 {[%clk 0:00:03]}  Qb2+ {[%clk 0:00:08]} 63. Kh7 {[%clk 0:00:04]}  Qh2 {[%clk 0:00:08]} 64. h6 {[%clk 0:00:04]}  Qh3 {[%clk 0:00:07]} 65. Kg8 {[%clk 0:00:05]}  Qb3+ {[%clk 0:00:06]} 66. Qf7+ {[%clk 0:00:05]}  Qxf7+ {[%clk 0:00:07]} 67. Kxf7 {[%clk 0:00:06]}  Kd6 {[%clk 0:00:07]} 68. h7 {[%clk 0:00:07]}  Ke5 {[%clk 0:00:08]} 69. h8=Q+ {[%clk 0:00:08]}  Ke4 {[%clk 0:00:09]} 70. Qf6 {[%clk 0:00:09]}  Ke3 {[%clk 0:00:10]} 71. Ke6 {[%clk 0:00:10]}  Kd2 {[%clk 0:00:10]} 72. Qe5 {[%clk 0:00:11]} 1-0


[Site "https://www.chess.com"]

[Event "Titled Tuesday Blitz February 07 Early 2023"]
[White "Urbina Perez, Juan Antonio"]
[Black "Boruchovsky, Avital"]
[WhiteFideId "2217368"]
[BlackFideId "2800055"]
[WhiteElo "2266"]
[BlackElo "2539"]
[Result "0-1"]
[Round "01"]
[TimeControl "180+2"]
[Date "2023.02.07"]
[WhiteClock "0:02:00"]
[BlackClock "0:02:24"]

1. Nf3 {[%clk 0:02:59]}  d5 {[%clk 0:02:59]} 2. d4 {[%clk 0:02:58]}  Bf5 {[%clk 0:02:57]} 3. g3 {[%clk 0:02:59]}  e6 {[%clk 0:02:55]} 4. Bg2 {[%clk 0:02:58]}  h6 {[%clk 0:02:55]} 5. O-O {[%clk 0:02:55]}  c6 {[%clk 0:02:56]} 6. Nbd2 {[%clk 0:02:50]}  Nf6 {[%clk 0:02:51]} 7. c3 {[%clk 0:02:48]}  Nbd7 {[%clk 0:02:50]} 8. Qb3 {[%clk 0:02:49]}  Qb6 {[%clk 0:02:49]} 9. Re1 {[%clk 0:02:49]}  Bh7 {[%clk 0:02:46]} 10. c4 {[%clk 0:02:30]}  Qxb3 {[%clk 0:02:43]} 11. axb3 {[%clk 0:02:29]}  Bb4 {[%clk 0:02:43]} 12. Ra4 {[%clk 0:02:23]}  a5 {[%clk 0:02:43]} 13. Rf1 {[%clk 0:02:21]}  O-O {[%clk 0:02:37]} 14. Ne1 {[%clk 0:02:16]}  dxc4 {[%clk 0:02:25]} 15. Nxc4 {[%clk 0:02:00]}  b5 {[%clk 0:02:24]} 0-1


[Site "https://www.chess.com"]

[Event "Titled Tuesday Blitz February 07 Early 2023"]
[White "Lodici, Lorenzo"]
[Black "Yeritsyan, Hayk"]
[WhiteFideId "884189"]
[BlackFideId "13307320"]
[WhiteElo "2524"]
[BlackElo "2241"]
[Result "1-0"]
[Round "01"]
[TimeControl "180+2"]
[Date "2023.02.07"]
[WhiteClock "0:01:22"]
[BlackClock "0:00:03"]

1. c4 {[%clk 0:02:59]}  Nf6 {[%clk 0:02:57]} 2. Nc3 {[%clk 0:02:56]}  e6 {[%clk 0:02:54]} 3. e4 {[%clk 0:02:55]}  d5 {[%clk 0:02:48]} 4. e5 {[%clk 0:02:55]}  d4 {[%clk 0:02:45]} 5. exf6 {[%clk 0:02:54]}  dxc3 {[%clk 0:02:43]} 6. bxc3 {[%clk 0:02:54]}  Qxf6 {[%clk 0:02:42]} 7. Nf3 {[%clk 0:02:55]}  b6 {[%clk 0:02:32]} 8. Qa4+ {[%clk 0:02:42]}  Bd7 {[%clk 0:02:28]} 9. Qb3 {[%clk 0:02:40]}  c5 {[%clk 0:02:26]} 10. d4 {[%clk 0:02:39]}  Nc6 {[%clk 0:02:18]} 11. Bd3 {[%clk 0:02:36]}  cxd4 {[%clk 0:02:14]} 12. Bg5 {[%clk 0:02:35]}  Ne5 {[%clk 0:02:07]} 13. Bxf6 {[%clk 0:02:33]}  Nxd3+ {[%clk 0:02:08]} 14. Kf1 {[%clk 0:02:18]}  Nc5 {[%clk 0:01:28]} 15. Qd1 {[%clk 0:02:17]}  gxf6 {[%clk 0:01:27]} 16. cxd4 {[%clk 0:02:17]}  Ne4 {[%clk 0:01:21]} 17. Qd3 {[%clk 0:02:17]}  Bc6 {[%clk 0:01:09]} 18. Re1 {[%clk 0:02:15]}  Nd6 {[%clk 0:00:53]} 19. d5 {[%clk 0:02:14]}  Bd7 {[%clk 0:00:53]} 20. Nd4 {[%clk 0:02:08]}  e5 {[%clk 0:00:51]} 21. f4 {[%clk 0:02:06]}  Bg7 {[%clk 0:00:47]} 22. Nc6 {[%clk 0:02:06]}  e4 {[%clk 0:00:41]} 23. Rxe4+ {[%clk 0:02:04]}  Kf8 {[%clk 0:00:40]} 24. Re1 {[%clk 0:01:51]}  Nb7 {[%clk 0:00:19]} 25. Ne7 {[%clk 0:01:31]}  Nc5 {[%clk 0:00:17]} 26. Qb1 {[%clk 0:01:28]}  h5 {[%clk 0:00:13]} 27. Nf5 {[%clk 0:01:26]}  Bh6 {[%clk 0:00:07]} 28. Nxh6 {[%clk 0:01:25]}  Rxh6 {[%clk 0:00:08]} 29. Kf2 {[%clk 0:01:25]}  Rg6 {[%clk 0:00:04]} 30. Re3 {[%clk 0:01:25]}  Kg7 {[%clk 0:00:04]} 31. Rhe1 {[%clk 0:01:24]}  Rg8 {[%clk 0:00:04]} 32. Rg3 {[%clk 0:01:24]}  Kh6 {[%clk 0:00:03]} 33. Re7 {[%clk 0:01:23]}  Bg4 {[%clk 0:00:02]} 34. h3 {[%clk 0:01:22]}  f5 {[%clk 0:00:02]} 35. hxg4 {[%clk 0:01:22]}  Ne4+ {[%clk 0:00:02]} 36. Rxe4 {[%clk 0:01:21]}  fxe4 {[%clk 0:00:03]} 37. g5+ {[%clk 0:01:22]} 1-0


[Site "https://www.chess.com"]